fUSD/lending_fUSD_20241121
["ID","MTS","AMOUNT","RATE_DAILY","PERIOD"]
[342945162,1732216249236,-500.0,0.0003863,11]
[342945163,1732216249247,-270.23298445,0.0003863,11]
[342945164,1732216249256,-500.0,0.0003863,11]
[342945165,1732216249266,-509.52,0.0003863,11]
[342945166,1732216249276,-518.87,0.0003863,11]
[342945167,1732216249285,-456.17706751,0.0003863,11]
[342945168,1732216249294,-500.0,0.0003863,11]
[342945169,1732216249304,-500.0,0.0003863,11]
[342945170,1732216249314,-500.0,0.0003863,11]
[342945171,1732216249324,-500.0,0.0003863,11]
[342945172,1732216249333,-500.0,0.0003863,11]
[342945173,1732216249342,-500.0,0.0003863,11]
[342945174,1732216249352,-500.0,0.0003863,11]
[342945175,1732216249361,-500.0,0.0003863,11]
[342945176,1732216249371,-382.36,0.0003863,11]
[342945177,1732216249380,-500.0,0.0003863,11]
[342945178,1732216249390,-500.0,0.0003863,11]
[342945179,1732216249399,-500.0,0.0003863,11]
[342945180,1732216249409,-539.59,0.0003863,11]
[342945181,1732216249422,-500.0,0.0003863,11]
[342945182,1732216249431,-500.0,0.0003863,11]
[342945183,1732216249443,-566.3802096,0.0003863,11]
[342945184,1732216249454,-500.0,0.0003863,11]
[342945185,1732216249464,-500.0,0.0003863,11]
[342945186,1732216249475,-500.0,0.0003863,11]
[342945187,1732216249487,-500.0,0.0003863,11]
[342945188,1732216249497,-500.0,0.0003863,11]
[342945189,1732216249507,-500.0,0.0003863,11]
[342945190,1732216249518,-500.0,0.0003863,11]
[342945191,1732216249529,-500.0,0.0003863,11]
[342945192,1732216249539,-500.0,0.0003863,11]
[342945193,1732216249550,-500.0,0.0003863,11]
[342945194,1732216249560,-735.49,0.0003863,11]
[342945195,1732216249570,-3795.78,0.0003863,11]
[342945196,1732216249579,-500.0,0.0003863,11]
[342945197,1732216249589,-500.0,0.0003863,11]
[342945198,1732216249598,-500.0,0.0003863,11]
[342945199,1732216249608,-478.23858106,0.0003863,11]
[342945200,1732216249619,-1439.34,0.0003863,11]
[342945201,1732216249632,-500.0,0.0003863,11]
[342945202,1732216249641,-500.0,0.0003863,11]
[342945203,1732216249650,-500.0,0.0003863,11]
[342945204,1732216249659,-500.0,0.0003863,11]
[342945205,1732216249671,-500.0,0.0003863,11]
[342945206,1732216249681,-500.0,0.0003863,11]
[342945207,1732216249691,-693.95,0.0003863,11]
[342945208,1732216249700,-500.0,0.0003863,11]
[342945209,1732216249709,-500.24,0.0003863,11]
[342945210,1732216249719,-500.0,0.0003863,11]
[342945211,1732216249729,-500.0,0.0003863,11]
[342945212,1732216249738,-500.0,0.0003863,11]
[342945213,1732216249749,-537.35,0.0003863,11]
[342945214,1732216249758,-500.0,0.0003863,11]
[342945215,1732216249768,-466.97,0.0003863,11]
[342945216,1732216249778,-500.0,0.0003863,11]
[342945217,1732216249787,-500.0,0.0003863,11]
[342945218,1732216249805,-500.0,0.0003863,11]
[342945219,1732216249817,-500.0,0.0003863,11]
[342945220,1732216249827,-500.0,0.0003863,11]
[342945221,1732216249836,-1303.34,0.0003863,11]
[342945222,1732216249846,-500.0,0.0003863,11]
[342945223,1732216249856,-500.0,0.0003863,11]
[342945224,1732216249865,-500.0,0.0003863,11]
[342945225,1732216249875,-500.0,0.0003863,11]
[342945226,1732216249884,-575.25,0.0003863,11]
[342945227,1732216249894,-500.0,0.0003863,11]
[342945228,1732216249903,-1287.99,0.0003863,11]
[342945229,1732216249912,-500.0,0.0003863,7]
[342945230,1732216249925,-500.0,0.0003863,11]
[342945231,1732216249935,-500.0,0.0003863,11]
[342945232,1732216249944,-564.87,0.0003863,11]
[342945233,1732216249954,-500.0,0.0003863,11]
[342945234,1732216249963,-500.0,0.0003863,11]
[342945235,1732216249972,-968.29,0.0003863,11]
[342945236,1732216249982,-500.0,0.0003863,11]
[342945237,1732216249992,-500.0,0.0003863,11]
[342945238,1732216250001,-500.0,0.0003863,11]
[342945239,1732216250011,-500.0,0.0003863,11]
[342945240,1732216250020,-2980.28,0.0003863,11]
[342945241,1732216250029,-500.0,0.0003863,11]
[342945242,1732216250038,-500.0,0.0003863,11]
[342945243,1732216250048,-1318.23,0.0003863,11]
[342945244,1732216250058,-573.61,0.0003863,11]
[342945245,1732216250067,-500.0,0.0003863,11]
[342945246,1732216250076,-336.38,0.0003863,11]
[342945247,1732216250086,-500.0,0.0003863,11]
[342945248,1732216250095,-803.02,0.0003863,11]
[342945249,1732216250104,-500.0,0.0003863,11]
[342945250,1732216250114,-500.0,0.0003863,11]
[342945251,1732216250124,-500.0,0.0003863,11]
[342945252,1732216250133,-500.0,0.0003863,11]
[342945253,1732216250142,-500.0,0.0003863,11]
[342945254,1732216250152,-500.0,0.0003863,11]
[342945255,1732216250162,-500.0,0.0003863,11]
[342945256,1732216250175,-716.44,0.0003863,11]
[342945257,1732216250185,-500.0,0.0003863,11]
[342945258,1732216250195,-500.0,0.0003863,11]
[342945259,1732216250204,-500.0,0.0003863,11]
[342945260,1732216250214,-500.0,0.0003863,11]
[342945261,1732216250223,-500.0,0.0003863,11]
[342945262,1732216250233,-500.0,0.0003863,11]
[342945263,1732216250243,-500.0,0.0003863,11]
[342945264,1732216250253,-500.0,0.0003863,11]
[342945265,1732216250262,-632.12,0.0003863,11]
[342945266,1732216250272,-500.0,0.0003863,11]
[342945267,1732216250281,-500.0,0.0003863,11]
[342945268,1732216250291,-500.0,0.0003863,11]
[342945269,1732216250300,-500.0,0.0003863,11]
[342945270,1732216250310,-500.0,0.0003863,11]
[342945271,1732216250320,-500.0,0.0003863,11]
[342945272,1732216250329,-500.0,0.0003863,11]
[342945273,1732216250338,-500.0,0.0003863,11]
[342945274,1732216250545,-867.76,0.0003863,11]
[342945275,1732216250555,-548.65,0.0003863,11]
[342945276,1732216250564,-576.83,0.0003863,11]
[342945277,1732216250574,-500.0,0.0003863,11]
[342945278,1732216250583,-541.69098151,0.0003863,7]
[342945279,1732216250593,-168.72,0.0003863,11]
[342945280,1732216250602,-500.0,0.0003863,11]
[342945281,1732216250612,-237.6,0.0003863,11]
[342945282,1732216250621,-500.0,0.0003863,11]
[342945283,1732216250631,-500.0,0.0003863,11]
[342945284,1732216250640,-7366.18,0.0003863,2]
[342945285,1732216250650,-500.0,0.0003863,11]
[342945286,1732216250659,-511.4,0.0003863,11]
[342945287,1732216250671,-500.0,0.0003863,11]
[342945288,1732216250680,-7567.01,0.0003863,11]
[342945289,1732216250690,-500.0,0.0003863,11]
[342945290,1732216250699,-500.0,0.0003863,11]
[342945291,1732216250708,-500.0,0.0003863,11]
[342945292,1732216250718,-500.0,0.0003863,11]
[342945293,1732216250727,-464.7,0.0003863,11]
[342945294,1732216250736,-500.0,0.0003863,11]
[342945295,1732216250746,-500.0,0.0003863,11]
[342945296,1732216250755,-1589.28,0.0003863,11]
[342945297,1732216250764,-500.0,0.0003863,11]
[342945298,1732216250773,-329.16,0.0003863,11]
[342945299,1732216250782,-500.0,0.0003863,11]
[342945300,1732216250791,-500.0,0.0003863,11]
[342945301,1732216250801,-673.02,0.0003863,11]
[342945302,1732216250810,-371.98,0.0003863,11]
[342945303,1732216250819,-500.0,0.0003863,11]
[342945304,1732216250828,-500.0,0.0003863,11]
[342945305,1732216250837,-500.0,0.0003863,11]
[342945306,1732216250846,-500.0,0.0003863,11]
[342945307,1732216250855,-500.0,0.0003863,11]
[342945308,1732216250864,-749.87,0.0003863,11]
[342945309,1732216250873,-500.0,0.0003863,11]
[342945310,1732216250882,-623.98,0.0003863,11]
[342945311,1732216250891,-150.0,0.00038631,2]
[342945312,1732216250900,-150.0,0.00038632,2]
[342945313,1732216250910,-1500.0,0.0003864,2]
[342945314,1732216250922,-150.0,0.00038643,2]
[342945315,1732216250931,-1500.0,0.00038648,2]
[342945316,1732216250941,-150.0,0.00038652,2]
[342945317,1732216250950,-150.0,0.00038653,2]
[342945318,1732216250960,-150.0,0.00038661,2]
[342945319,1732216250969,-1500.0,0.00038688,2]
[342945320,1732216250979,-150.0,0.00038689,2]
[342945321,1732216250988,-150.0,0.00038694,2]
[342945322,1732216250997,-3946.0,0.000387,2]
[342945323,1732216251007,-500.0,0.00038702,11]
[342945324,1732216251016,-500.0,0.00038702,11]
[342945325,1732216251025,-500.0,0.00038702,11]
[342945326,1732216251034,-500.0,0.00038702,11]
[342945327,1732216251044,-500.0,0.00038702,11]
[342945328,1732216251053,-500.0,0.00038702,11]
[342945329,1732216251062,-500.0,0.00038702,11]
[342945330,1732216251071,-150.0,0.00038708,2]
[342945331,1732216251080,-150.0,0.00038731,2]
[342945332,1732216251089,-150.0,0.00038733,2]
[342945333,1732216251099,-153.0,0.00038737,2]
[342945334,1732216251108,-153.0,0.00038737,2]
[342945335,1732216251117,-153.0,0.00038737,2]
[342945336,1732216251126,-153.0,0.00038737,2]
[342945337,1732216251136,-153.0,0.00038737,2]
[342945338,1732216251144,-153.0,0.00038737,2]
[342945339,1732216251154,-153.0,0.00038737,2]
[342945340,1732216251163,-153.0,0.00038737,2]
[342945341,1732216251176,-150.0,0.00038739,2]
[342945342,1732216251186,-969.18,0.00038741,2]
[342945343,1732216251195,-969.18,0.00038741,2]
[342945344,1732216251205,-969.18,0.00038741,2]
[342945345,1732216251214,-150.0,0.00038745,2]
[342945346,1732216251224,-150.0,0.00038747,2]
[342945347,1732216251234,-150.0,0.0003875,2]
[342945348,1732216251243,-1500.0,0.00038751,2]
[342945349,1732216251253,-150.0,0.00038755,2]
[342945350,1732216251261,-362.63,0.00038755,2]
[342945351,1732216251271,-150.0,0.00038755,2]
[342945352,1732216251280,-150.0,0.00038755,2]
[342945353,1732216251289,-163.81,0.00038755,2]
[342945354,1732216251299,-150.0,0.00038755,2]
[342945355,1732216251309,-433.47,0.00038755,2]
[342945356,1732216251318,-150.0,0.00038755,2]
[342945357,1732216251328,-150.0,0.00038755,2]
[342945358,1732216251339,-150.0,0.00038755,2]
[342945359,1732216251348,-150.0,0.00038755,2]
[342945360,1732216251358,-362.63,0.00038755,2]
[342945361,1732216251367,-150.0,0.00038755,2]
[342945362,1732216251377,-866.81,0.00038755,2]
[342945363,1732216251386,-150.0,0.00038755,2]
[342945364,1732216251396,-150.0,0.00038755,2]
[342945365,1732216251405,-433.47,0.00038755,2]
[342945366,1732216251415,-150.0,0.00038755,2]
[342945367,1732216251426,-362.63,0.00038755,2]
[342945368,1732216251436,-150.0,0.00038755,2]
[342945369,1732216251448,-165.24,0.00038755,2]
[342945370,1732216251457,-150.0,0.00038755,2]
[342945371,1732216251467,-150.0,0.00038755,2]
[342945372,1732216251476,-150.0,0.00038755,2]
[342945373,1732216251487,-362.63,0.00038755,2]
[342945374,1732216251497,-300.0,0.00038755,2]
[342945375,1732216251507,-362.63,0.00038755,2]
[342945376,1732216251517,-150.0,0.00038755,2]
[342945377,1732216251526,-313.63,0.00038755,2]
[342945378,1732216251536,-150.0,0.00038755,2]
[342945379,1732216251546,-322.42,0.00038755,2]
[342945380,1732216251555,-359.6,0.00038755,2]
[342945381,1732216251564,-220.76,0.00038755,2]
[342945382,1732216251575,-433.47,0.00038755,2]
[342945383,1732216251585,-433.47,0.00038755,2]
[342945384,1732216251594,-865.13,0.00038755,2]
[342945385,1732216251603,-150.0,0.00038763,2]
[342945386,1732216251613,-500.0,0.00038769,3]
[342945387,1732216251622,-150.0,0.00038769,2]
[342945388,1732216251631,-1400.0,0.00038775,60]
[342945389,1732216251641,-1000.0,0.000388,15]
[342945390,1732216251651,-1200.0,0.000388,14]
[342945391,1732216251661,-163.06,0.00038801,2]
[342945392,1732216251671,-166.82955001,0.00038804,12]
[342945393,1732216251681,-150.0,0.00038809,2]
[342945394,1732216251690,-150.0,0.00038811,2]
[342945395,1732216251700,-150.0,0.00038818,2]
[342945396,1732216251709,-1500.0,0.0003882,2]
[342945397,1732216251718,-150.0,0.00038823,2]
[342945398,1732216251727,-150.0,0.00038839,2]
[342945399,1732216251737,-150.0,0.00038849,2]
[342945400,1732216251746,-1500.0,0.00038852,2]
[342945401,1732216251756,-150.0,0.00038855,2]
[342945402,1732216251765,-150.0,0.00038855,2]
[342945403,1732216251774,-150.0,0.00038859,2]
[342945404,1732216251784,-1500.0,0.00038862,2]
[342945405,1732216251793,-150.0,0.00038863,2]
[342945406,1732216251802,-150.0,0.00038872,2]
[342945407,1732216251811,-150.0,0.00038877,2]
[342945408,1732216251820,-150.0,0.00038886,2]
[342945409,1732216251830,-710.75418,0.000389,10]
[342945410,1732216251840,-2500.0,0.000389,14]
[342945411,1732216251850,-500.0,0.00038904,30]
[342945412,1732216251859,-628.32,0.00038904,11]
[342945413,1732216251870,-274.16,0.00038904,11]
[342945414,1732216251879,-500.0,0.00038904,11]
[342945415,1732216251888,-504.0,0.00038904,11]
[342945416,1732216251898,-500.0,0.00038904,11]
[342945417,1732216251907,-514.14,0.00038904,11]
[342945418,1732216251918,-500.0,0.00038904,11]
[342945419,1732216251928,-428.61,0.00038904,11]
[342945420,1732216251937,-500.0,0.00038904,11]
[342945421,1732216251947,-500.0,0.00038904,11]
[342945422,1732216251957,-500.0,0.00038904,11]
[342945423,1732216251966,-500.0,0.00038904,11]
[342945424,1732216251975,-500.0,0.00038904,11]
[342945425,1732216251985,-500.0,0.00038904,30]
[342945426,1732216251994,-500.0,0.00038904,11]
[342945427,1732216252004,-500.0,0.00038904,11]
[342945428,1732216252013,-292.99942998,0.00038904,11]
[342945429,1732216252023,-500.0,0.00038904,11]
[342945430,1732216252033,-238.92935314,0.00038904,11]
[342945431,1732216252042,-638.09,0.00038904,11]
[342945432,1732216252051,-259.58,0.00038904,11]
[342945433,1732216252061,-543.98,0.00038904,11]
[342945434,1732216252071,-500.0,0.00038904,11]
[342945435,1732216252080,-1082.43,0.00038904,11]
[342945436,1732216252089,-156.88,0.00038904,11]
[342945437,1732216252098,-500.0,0.00038904,11]
[342945438,1732216252107,-394.25563559,0.00038904,11]
[342945439,1732216252117,-500.0,0.00038904,11]
[342945440,1732216252127,-500.0,0.00038904,11]
[342945441,1732216252136,-500.0,0.00038904,11]
[342945442,1732216252146,-462.26836573,0.00038904,11]
[342945443,1732216252155,-500.0,0.00038904,11]
[342945444,1732216252165,-500.0,0.00038904,11]
[342945445,1732216252176,-173.31320018,0.00038904,11]
[342945446,1732216252185,-520.16,0.00038904,11]
[342945447,1732216252195,-500.0,0.00038904,11]
[342945448,1732216252204,-500.0,0.00038904,11]
[342945449,1732216252214,-500.0,0.00038904,11]
[342945450,1732216252224,-574.49211883,0.00038904,11]
[342945451,1732216252235,-500.0,0.00038904,11]
[342945452,1732216252244,-500.0,0.00038904,11]
[342945453,1732216252254,-500.0,0.00038904,11]
[342945454,1732216252263,-500.0,0.00038904,11]
[342945455,1732216252272,-500.0,0.00038904,11]
[342945456,1732216252281,-500.0,0.00038904,11]
[342945457,1732216252291,-500.0,0.00038904,11]
[342945458,1732216252299,-500.0,0.00038904,11]
[342945459,1732216252308,-500.0,0.00038904,11]
[342945460,1732216252317,-500.0,0.00038904,11]
[342945461,1732216252326,-577.99,0.00038904,11]
[342945462,1732216252335,-500.0,0.00038904,11]
[342945463,1732216252346,-255.11,0.00038904,11]
[342945464,1732216252355,-500.0,0.00038904,11]
[342945465,1732216252364,-155.47,0.00038904,11]
[342945466,1732216252373,-184.3,0.00038904,11]
[342945467,1732216252382,-500.0,0.00038904,11]
[342945468,1732216252391,-500.0,0.00038904,11]
[342945469,1732216252400,-500.0,0.00038904,11]
[342945470,1732216252409,-500.0,0.00038904,11]
[342945471,1732216252419,-500.0,0.00038904,11]
[342945472,1732216252428,-500.0,0.00038904,11]
[342945473,1732216252437,-500.0,0.00038904,11]
[342945474,1732216252454,-500.0,0.00038904,11]
[342945475,1732216252464,-500.0,0.00038904,11]
[342945476,1732216252473,-500.0,0.00038904,11]
[342945477,1732216252482,-469.12,0.00038904,11]
[342945478,1732216252493,-318.95,0.00038904,11]
[342945479,1732216252502,-444.82,0.00038904,11]
[342945480,1732216252512,-500.0,0.00038904,11]
[342945481,1732216252523,-401.61076353,0.00038904,11]
[342945482,1732216252532,-500.0,0.00038904,11]
[342945483,1732216252541,-500.0,0.00038904,11]
[342945484,1732216252551,-500.0,0.00038904,11]
[342945485,1732216252560,-388.57,0.00038904,11]
[342945486,1732216252569,-500.0,0.00038904,11]
[342945487,1732216252579,-500.0,0.00038904,11]
[342945488,1732216252588,-219.24,0.00038904,11]
[342945489,1732216252597,-300.0,0.00038904,11]
[342945490,1732216252607,-500.0,0.00038904,11]
[342945491,1732216252617,-500.0,0.00038904,11]
[342945492,1732216252626,-283.58,0.00038904,11]
[342945493,1732216252636,-566.09,0.00038904,11]
[342945494,1732216252645,-411.9,0.00038904,11]
[342945495,1732216252654,-500.0,0.00038904,11]
[342945496,1732216252663,-500.0,0.00038904,11]
[342945497,1732216252675,-500.0,0.00038904,11]
[342945498,1732216252684,-500.0,0.00038904,11]
[342945499,1732216252693,-500.0,0.00038904,11]
[342945500,1732216252702,-500.0,0.00038904,11]
[342945501,1732216252712,-500.0,0.00038904,11]
[342945502,1732216252722,-500.0,0.00038904,11]
[342945503,1732216252732,-444.78,0.00038904,11]
[342945504,1732216252741,-500.0,0.00038904,11]
[342945505,1732216252751,-210.04,0.00038904,11]
[342945506,1732216252760,-500.0,0.00038904,11]
[342945507,1732216252769,-456.47,0.00038904,11]
[342945508,1732216252778,-267.93,0.00038904,11]
[342945509,1732216252787,-500.0,0.00038904,11]
[342945510,1732216252797,-500.0,0.00038904,11]
[342945511,1732216252806,-500.0,0.00038904,11]
[342945512,1732216252815,-205.62,0.00038904,11]
[342945513,1732216252824,-500.0,0.00038904,11]
[342945514,1732216252833,-500.0,0.00038904,11]
[342945515,1732216252842,-204.82,0.00038904,11]
[342945516,1732216252851,-500.0,0.00038904,11]
[342945517,1732216252860,-500.0,0.00038904,11]
[342945518,1732216252869,-355.84,0.00038904,11]
[342945519,1732216252878,-500.0,0.00038904,11]
[342945520,1732216252887,-656.88,0.00038904,11]
[342945521,1732216252896,-500.0,0.00038904,11]
[342945522,1732216252905,-500.0,0.00038904,11]
[342945523,1732216252915,-273.49,0.00038904,11]
[342945524,1732216252929,-500.0,0.00038904,11]
[342945525,1732216252944,-368.62,0.00038904,11]
[342945526,1732216252954,-408.41743208,0.00038904,11]
[342945527,1732216252963,-500.0,0.00038904,11]
[342945528,1732216252973,-500.0,0.00038904,11]
[342945529,1732216252982,-500.0,0.00038904,11]
[342945530,1732216252991,-354.25,0.00038904,11]
[342945531,1732216253000,-434.86,0.00038904,11]
[342945532,1732216253010,-500.0,0.00038904,11]
[342945533,1732216253019,-500.0,0.00038904,11]
[342945534,1732216253029,-500.0,0.00038904,11]
[342945535,1732216253038,-500.0,0.00038904,11]
[342945536,1732216253048,-500.0,0.00038904,11]
[342945537,1732216253057,-570.7,0.00038904,11]
[342945538,1732216253067,-500.0,0.00038904,11]
[342945539,1732216253076,-250.77,0.00038904,11]
[342945540,1732216253085,-500.0,0.00038904,11]
[342945541,1732216253094,-499.92,0.00038904,11]
[342945542,1732216253103,-500.0,0.00038904,11]
[342945543,1732216253112,-500.0,0.00038904,11]
[342945544,1732216253121,-500.0,0.00038904,11]
[342945545,1732216253130,-500.0,0.00038904,11]
[342945546,1732216253139,-500.0,0.00038904,11]
[342945547,1732216253148,-500.0,0.00038904,11]
[342945548,1732216253157,-371.35,0.00038904,11]
[342945549,1732216253167,-500.0,0.00038904,11]
[342945550,1732216253180,-500.0,0.00038904,11]
[342945551,1732216253189,-224.62,0.00038904,11]
[342945552,1732216253198,-855.16,0.00038904,11]
[342945553,1732216253207,-500.0,0.00038904,11]
[342945554,1732216253216,-509.52,0.00038904,11]
[342945555,1732216253225,-648.26,0.00038904,11]
[342945556,1732216253234,-500.0,0.00038904,11]
[342945557,1732216253243,-500.0,0.00038904,11]
[342945558,1732216253252,-500.0,0.00038904,11]
[342945559,1732216253261,-500.0,0.00038904,11]
[342945560,1732216253270,-386.71,0.00038904,11]
[342945561,1732216253279,-500.0,0.00038904,11]
[342945562,1732216253288,-500.0,0.00038904,11]
[342945563,1732216253297,-500.0,0.00038904,11]
[342945564,1732216253307,-500.0,0.00038904,11]
[342945565,1732216253317,-612.45207358,0.00038904,11]
[342945566,1732216253326,-500.0,0.00038904,11]
[342945567,1732216253336,-500.0,0.00038904,11]
[342945568,1732216253346,-587.6,0.00038904,11]
[342945569,1732216253357,-500.0,0.00038904,11]
[342945570,1732216253366,-500.0,0.00038904,11]
[342945571,1732216253375,-500.0,0.00038904,11]
[342945572,1732216253384,-436.38,0.00038904,11]
[342945573,1732216253393,-500.0,0.00038904,11]
[342945574,1732216253402,-500.0,0.00038904,11]
[342945575,1732216253412,-500.0,0.00038904,11]
[342945576,1732216253426,-735.49,0.00038904,11]
[342945577,1732216253435,-3795.78,0.00038904,11]
[342945578,1732216253450,-500.0,0.00038904,11]
[342945579,1732216253459,-500.0,0.00038904,11]
[342945580,1732216253470,-500.0,0.00038904,11]
[342945581,1732216253480,-1439.34,0.00038904,11]
[342945582,1732216253493,-500.0,0.00038904,11]
[342945583,1732216253503,-500.0,0.00038904,11]
[342945584,1732216253512,-500.0,0.00038904,11]
[342945585,1732216253522,-500.0,0.00038904,11]
[342945586,1732216253532,-500.0,0.00038904,11]
[342945587,1732216253542,-693.95,0.00038904,11]
[342945588,1732216253552,-500.24,0.00038904,11]
[342945589,1732216253561,-500.0,0.00038904,11]
[342945590,1732216253572,-500.0,0.00038904,11]
[342945591,1732216253582,-500.0,0.00038904,11]
[342945592,1732216253591,-537.35,0.00038904,11]
[342945593,1732216253601,-500.0,0.00038904,11]
[342945594,1732216253610,-500.0,0.00038904,11]
[342945595,1732216253620,-435.36335391,0.00038904,11]
[342945596,1732216253630,-500.0,0.00038904,11]
[342945597,1732216253639,-500.0,0.00038904,11]
[342945598,1732216253648,-1303.34,0.00038904,11]
[342945599,1732216253658,-500.0,0.00038904,11]
[342945600,1732216253672,-500.0,0.00038904,11]
[342945601,1732216253682,-500.0,0.00038904,11]
[342945602,1732216253692,-575.25,0.00038904,11]
[342945603,1732216253701,-181.81,0.00038904,11]
[342945604,1732216253865,-1287.99,0.00038904,11]
[342945605,1732216253874,-549.44,0.00038904,7]
[342945606,1732216253883,-289.4,0.00038904,11]
[342945607,1732216253893,-500.0,0.00038904,11]
[342945608,1732216253902,-564.87,0.00038904,11]
[342945609,1732216253912,-500.0,0.00038904,11]
[342945610,1732216253924,-500.0,0.00038904,11]
[342945611,1732216253933,-968.29,0.00038904,11]
[342945612,1732216253942,-500.0,0.00038904,11]
[342945613,1732216253951,-500.0,0.00038904,11]
[342945614,1732216253961,-500.0,0.00038904,11]
[342945615,1732216253970,-2980.28,0.00038904,11]
[342945616,1732216253979,-500.0,0.00038904,11]
[342945617,1732216253988,-500.0,0.00038904,11]
[342945618,1732216253997,-573.61,0.00038904,11]
[342945619,1732216254006,-1318.23,0.00038904,11]
[342945620,1732216254015,-220.62,0.00038904,11]
[342945621,1732216254024,-803.02,0.00038904,11]
[342945622,1732216254033,-500.0,0.00038904,11]
[342945623,1732216254042,-500.0,0.00038904,11]
[342945624,1732216254051,-350.06,0.00038904,11]
[342945625,1732216254060,-500.0,0.00038904,11]
[342945626,1732216254070,-500.0,0.00038904,11]
[342945627,1732216254079,-716.44,0.00038904,11]
[342945628,1732216254089,-517.12,0.00038904,11]
[342945629,1732216254098,-500.0,0.00038904,11]
[342945630,1732216254108,-547.09,0.00038904,11]
[342945631,1732216254117,-500.0,0.00038904,11]
[342945632,1732216254126,-500.0,0.00038904,11]
[342945633,1732216254136,-328.48,0.00038904,11]
[342945634,1732216254146,-500.0,0.00038904,11]
[342945635,1732216254156,-500.0,0.00038904,11]
[342945636,1732216254165,-632.12,0.00038904,11]
[342945637,1732216254176,-500.0,0.00038904,11]
[342945638,1732216254186,-500.0,0.00038904,11]
[342945639,1732216254195,-500.0,0.00038904,11]
[342945640,1732216254204,-577.10001031,0.00038904,11]
[342945641,1732216254214,-500.0,0.00038904,11]
[342945642,1732216254224,-500.0,0.00038904,11]
[342945643,1732216254234,-500.0,0.00038904,11]
[342945644,1732216254243,-867.76,0.00038904,11]
[342945645,1732216254253,-576.83,0.00038904,11]
[342945646,1732216254263,-500.0,0.00038904,11]
[342945647,1732216254272,-500.0,0.00038904,11]
[342945648,1732216254282,-7366.18,0.00038904,2]
[342945649,1732216254291,-500.0,0.00038904,11]
[342945650,1732216254301,-500.0,0.00038904,11]
[342945651,1732216254310,-500.0,0.00038904,11]
[342945652,1732216254319,-7567.01,0.00038904,11]
[342945653,1732216254328,-500.0,0.00038904,11]
[342945654,1732216254337,-500.0,0.00038904,11]
[342945655,1732216254346,-500.0,0.00038904,11]
[342945656,1732216254356,-500.0,0.00038904,11]
[342945657,1732216254365,-500.0,0.00038904,11]
[342945658,1732216254374,-500.0,0.00038904,11]
[342945659,1732216254384,-1589.28,0.00038904,11]
[342945660,1732216254393,-568.94,0.00038904,11]
[342945661,1732216254402,-500.0,0.00038904,11]